bitfinex/quotes_ETHUSD_20240603
["timestamp","ask_amount","ask_price","bid_price","bid_amount"]
[1717449672424,14.67768863,3771.4,3771.3,0.21]
[1717449673279,13.09317931,3771.4,3771.3,0.21]
[1717449673498,14.67769475,3771.4,3771.3,0.21]
[1717449675318,13.09317931,3771.4,3771.3,0.21]
[1717449678519,12.51984956,3771.4,3771.3,0.21]
[1717449680776,13.09319564,3771.4,3771.3,0.21]
[1717449680979,14.67771108,3771.4,3771.3,0.21]
[1717449684518,19.40050685,3771.4,3771.3,0.21]
[1717449684928,17.81599141,3771.4,3771.3,0.21]
[1717449689271,17.24264533,3771.4,3771.3,0.21]
[1717449689395,17.81606718,3771.4,3771.3,0.21]
[1717449693134,20.46759718,3771.4,3771.3,0.21]
[1717449696247,8.95585,3770.8,3770.7,0.0019602]
[1717449696398,5.30474,3770.2,3770.1,0.02102273]
[1717449696632,12.89987212,3770.2,3770.1,0.02102273]
[1717449696837,14.19987212,3770.2,3770.1,0.02102273]
[1717449697050,16.03170933,3770.2,3770.1,0.02102273]
[1717449697266,16.03170933,3770.2,3767.9,0.0462627]
[1717449697267,2.65343,3768.7,3768.1,2.2894]
[1717449697556,6.20343,3768.7,3768.6,1.1964788]
[1717449697867,6.2511327,3768.7,3768.6,1.1964788]
[1717449700307,10.22582847,3768.7,3768.6,0.5554788]
[1717449700648,10.97582847,3768.7,3768.6,0.5554788]
[1717449701466,11.5495894,3768.7,3768.6,0.5554788]
[1717449701651,13.13384073,3768.7,3768.6,0.5554788]
[1717449701859,14.4472248,3768.7,3768.6,0.5554788]
[1717449702391,17.1006548,3768.7,3768.6,0.5554788]
[1717449702559,15.51640347,3768.7,3768.6,0.5554788]
[1717449703271,17.10056313,3768.7,3768.6,0.5554788]
[1717449704905,15.51640347,3768.7,3768.6,0.5554788]
[1717449705780,12.28921254,3768.7,3768.6,0.5554788]
[1717449706765,17.10058351,3768.7,3768.6,0.5554788]
[1717449706976,15.51642385,3768.7,3768.6,0.5554788]
[1717449707592,15.51647904,3768.7,3768.6,0.5554788]
[1717449709170,17.99397904,3768.7,3768.6,0.5554788]
[1717449709555,18.76753683,3768.7,3768.6,0.5554788]
[1717449709790,13.21044326,3768.7,3768.6,0.5554788]
[1717449710094,8.60908354,3768.7,3768.6,1.1964788]
[1717449710255,2.7011327,3768.7,3768.6,1.1964788]
[1717449710655,2.7011327,3768.7,3768.6,0.5554788]
[1717449710855,2.7011327,3768.7,3768.6,1.1964788]
[1717449712186,5.7011327,3768.7,3768.6,1.1964788]
[1717449712371,6.2511327,3768.7,3768.6,1.1964788]
[1717449712766,6.2511327,3768.7,3768.6,0.5554788]
[1717449712968,6.2511327,3768.7,3768.6,1.1964788]
[1717449713204,6.2511327,3768.7,3768.6,0.5554788]
[1717449713572,6.87624597,3768.7,3768.6,0.5554788]
[1717449713773,7.62624597,3768.7,3768.6,0.5554788]
[1717449714269,7.0011327,3768.7,3768.6,1.1964788]
[1717449715208,8.32239847,3768.7,3768.6,1.1964788]
[1717449715802,8.32239847,3768.7,3768.6,0.5554788]
[1717449716023,8.89615135,3768.7,3768.6,0.5554788]
[1717449716200,10.48026576,3768.7,3768.6,0.5554788]
[1717449716511,10.20950093,3768.7,3768.6,0.5554788]
[1717449717224,11.79361534,3768.7,3768.6,0.5554788]
[1717449717419,16.92454534,3768.7,3768.6,0.14894138]
[1717449717589,5.30784,3768.0,3767.9,0.0462627]
[1717449717783,10.17910577,3768.0,3767.9,0.0462627]
[1717449717986,11.81290132,3768.0,3767.9,0.0462627]
[1717449718188,13.3969235,3768.0,3767.9,0.0462627]
[1717449718401,11.81290132,3768.0,3767.9,0.0462627]
[1717449719017,11.81296335,3768.0,3767.9,0.0462627]
[1717449719409,11.81295714,3768.0,3767.9,0.0462627]
[1717449720229,13.39692646,3768.0,3767.9,0.0462627]
[1717449722295,11.81296025,3768.0,3767.9,0.0462627]
[1717449722949,11.81295546,3768.0,3767.9,0.0462627]
[1717449726543,11.81295546,3768.0,3767.9,0.6872627]
[1717449729031,11.81295546,3768.0,3767.9,0.0462627]
[1717449730640,11.81295546,3768.0,3767.9,0.6872627]
[1717449731212,10.49168969,3768.0,3767.9,0.6872627]
[1717449731437,9.47377911,3768.0,3767.9,0.6872627]
[1717449731882,8.89993916,3768.0,3767.9,0.6872627]
[1717449732019,9.47377068,3768.0,3767.9,0.6872627]
[1717449741797,9.47376878,3768.0,3767.9,0.6872627]
[1717449751971,6.81984878,3768.0,3767.9,0.6872627]
[1717449755703,6.81984878,3768.0,3767.9,0.0462627]
[1717449755896,6.81984878,3768.0,3767.9,0.6872627]
[1717449756277,6.81984878,3768.0,3767.9,0.0462627]
[1717449756509,6.81984878,3768.0,3767.9,0.6872627]
[1717449757305,11.47701943,3768.0,3767.9,0.0462627]
[1717449757507,12.22704368,3768.0,3767.9,0.0462627]
[1717449757708,17.35846368,3768.0,3767.9,0.0462627]
[1717449758018,18.35846368,3768.0,3767.9,0.0462627]
[1717449758217,17.35846368,3768.0,3767.9,0.0462627]
[1717449758421,22.02454368,3768.0,3767.9,0.0462627]
[1717449758607,23.02454368,3768.0,3767.9,0.0462627]
[1717449758809,25.67846368,3768.0,3767.9,0.0462627]
[1717449759312,22.02454368,3768.0,3767.9,0.0462627]
[1717449761667,22.02456986,3768.0,3767.9,0.0462627]
[1717449762366,2.65485,3766.7,3766.5,1.38401686]
[1717449762569,3.55,3766.6,3766.5,1.38401686]
[1717449762866,2.65498,3766.5,3766.2,2.2894]
[1717449763073,3.03872197,3766.4,3766.2,2.2894]
[1717449763369,2.65512,3766.3,3766.2,2.2894]
[1717449763686,2.69382341,3766.3,3766.2,2.2894]
[1717449763893,2.69382341,3766.3,3766.2,2.9304]
[1717449765492,0.03870341,3766.3,3766.2,3.22344]
[1717449765842,3.0,3766.6,3766.2,3.22344]
[1717449766034,3.0,3766.6,3766.5,2.9304]
[1717449768739,2.6549,3766.7,3766.5,2.9304]
[1717449768936,2.6549,3766.7,3765.7,2.21624548]
[1717449768937,2.65526,3766.1,3766.0,0.55654189]
[1717449769142,2.65526,3766.1,3766.0,3.85313429]
[1717449769368,2.65526,3766.1,3766.0,2.9304]
[1717449771535,2.65526,3766.1,3766.0,2.2894]
[1717449771938,2.65547,3765.8,3765.6,2.2894]
[1717449772169,2.65547,3765.8,3765.7,0.641]
[1717449773652,3.0,3766.1,3765.7,0.641]
[1717449773940,2.65519,3766.2,3766.0,0.641]
[1717449774271,3.0,3766.1,3766.0,0.641]
[1717449774474,2.65545,3765.9,3765.3,2.2894]
[1717449774678,2.65545,3765.9,3765.8,0.641]
[1717449774975,2.69222297,3765.9,3765.8,0.641]
[1717449777939,2.65562,3765.6,3765.3,2.2894]
[1717449778163,2.65562,3765.6,3765.5,0.641]
[1717449778982,3.20562,3765.6,3765.3,2.2894]
[1717449779183,2.65562,3765.6,3765.5,0.641]
[1717449779479,3.20562,3765.6,3765.5,0.641]
[1717449780264,2.65562,3765.6,3765.5,0.641]
[1717449782548,2.65562,3765.6,3764.8,1.50970932]
[1717449782549,4.58682777,3765.6,3764.8,1.50970932]
[1717449782862,6.45487577,3764.9,3764.8,0.1254788]
[1717449783185,7.02913273,3764.9,3764.8,0.1254788]
[1717449783425,14.953753,3764.9,3764.8,0.7664788]
[1717449783551,12.297643,3764.9,3764.8,0.1254788]
[1717449784387,11.72338604,3764.9,3764.8,0.1254788]
[1717449784543,12.29771996,3764.9,3764.8,0.1254788]
[1717449785051,13.87954706,3764.9,3764.8,0.1254788]
[1717449785272,12.29771996,3764.9,3764.8,0.1254788]
[1717449785443,11.72338604,3764.9,3764.8,0.1254788]
[1717449785951,10.97338604,3764.9,3764.8,0.1254788]
[1717449786291,11.72338604,3764.9,3764.8,0.1254788]
[1717449786475,9.24588604,3764.9,3764.8,0.1254788]
[1717449786681,6.62462027,3764.9,3764.8,0.1254788]
[1717449786982,5.65611,3764.9,3764.8,0.1254788]
[1717449788182,2.65611,3764.9,3764.8,0.1254788]
[1717449788370,2.65583,3765.3,3764.8,0.1254788]
[1717449788570,2.65583,3765.3,3765.2,1.546]
[1717449788779,2.65611,3764.9,3764.8,1.6714788]
[1717449789151,2.921721,3764.9,3764.8,0.1254788]
[1717449789663,2.95704106,3764.9,3764.8,0.1254788]
[1717449789848,3.50704106,3764.9,3764.8,0.1254788]
[1717449790274,6.50704106,3764.9,3764.8,0.1254788]
[1717449790781,6.24143006,3764.9,3764.8,0.1254788]
[1717449791748,5.69143006,3764.9,3764.8,0.1254788]
[1717449792878,6.24143006,3764.9,3764.8,0.1254788]
[1717449793685,7.56269583,3764.9,3764.8,0.1254788]
[1717449796758,6.24143006,3764.9,3764.8,0.1254788]
[1717449797002,7.27153505,3764.9,3764.8,0.1254788]
[1717449797886,5.69143006,3764.9,3764.8,0.1254788]
[1717449798874,7.01269583,3764.9,3764.8,0.1254788]
[1717449799201,5.69143006,3764.9,3764.8,0.1254788]
[1717449799765,6.24143006,3764.9,3764.8,0.1254788]
[1717449804071,7.56269583,3764.9,3764.8,0.1254788]
[1717449804314,8.7427694,3764.9,3764.8,0.1254788]
[1717449805274,6.24143006,3764.9,3764.8,0.1254788]
[1717449806315,6.81568395,3764.9,3764.8,0.1254788]
[1717449806981,6.24143006,3764.9,3764.8,0.1254788]
[1717449807303,6.81567452,3764.9,3764.8,0.1254788]
[1717449807507,6.24143006,3764.9,3764.8,0.1254788]
[1717449808409,6.2656556,3764.9,3764.8,0.1254788]
[1717449808596,5.69143006,3764.9,3764.8,0.1254788]
[1717449809605,2.69143006,3764.9,3764.8,0.1254788]
[1717449809772,2.69143006,3764.9,3764.8,2.58202668]
[1717449810577,0.03532006,3764.9,3764.8,2.58202668]
[1717449811215,0.03201942,3764.9,3764.8,2.58202668]
[1717449811423,3.0,3765.1,3764.8,2.58202668]
[1717449811586,3.0,3765.1,3765.0,1.546]
[1717449817918,3.0,3765.1,3765.0,0.644]
[1717449819506,3.02970966,3765.1,3765.0,0.644]
[1717449823943,0.02970966,3765.1,3765.0,0.644]
[1717449824649,0.02970966,3765.1,3765.0,0.96660267]
[1717449825150,0.02979223,3765.1,3765.0,0.96660267]
[1717449825926,3.0,3765.5,3765.0,0.96660267]
[1717449826126,0.02979223,3765.1,3765.0,0.32260267]
[1717449826345,0.02979223,3765.1,3765.0,0.96660267]
[1717449826551,0.03006016,3765.1,3765.0,0.96660267]
[1717449826944,3.0,3765.5,3765.0,0.96660267]
[1717449827124,3.0,3765.5,3765.4,0.644]
[1717449827646,3.03013443,3765.5,3765.4,0.644]
[1717449828350,3.03013443,3765.5,3765.4,2.9334]
[1717449829324,0.03013443,3765.5,3765.4,3.22674]
[1717449830282,7.32,3765.8,3765.4,3.22674]
[1717449830433,7.32,3765.8,3765.4,2.58274]
[1717449830434,0.03015236,3765.5,3765.4,2.58274]
[1717449830633,7.32,3765.8,3765.4,3.22674]
[1717449830879,7.32,3765.8,3765.7,0.644]
[1717449831035,3.0,3765.8,3765.7,0.644]
[1717449834063,3.0,3765.8,3765.4,2.2894]
[1717449834418,3.0,3765.8,3765.7,0.644]
[1717449836502,2.6552,3766.2,3765.7,0.644]
[1717449836673,2.6552,3766.2,3766.1,0.644]
[1717449837698,5.6552,3766.2,3766.1,0.644]
[1717449838274,5.6552,3766.2,3765.5,0.3673778]
[1717449838520,5.6552,3766.2,3766.1,0.644]
[1717449839383,5.6552,3766.2,3765.4,2.2894]
[1717449839617,5.6552,3766.2,3766.1,0.644]
[1717449843758,3.0,3766.2,3766.1,0.644]
[1717449843955,3.0,3766.4,3766.1,0.644]
[1717449844250,3.0,3766.4,3766.3,0.644]
[1717449845532,3.0,3766.6,3766.3,0.644]
[1717449845759,3.0,3766.6,3766.5,0.644]
[1717449849591,0.03068322,3766.6,3766.5,0.644]
[1717449849791,3.0,3766.9,3766.5,0.644]
[1717449850092,3.0,3766.9,3766.8,0.644]
[1717449852108,3.0,3766.9,3766.8,0.93734]
[1717449852296,3.0,3767.2,3766.8,0.93734]
[1717449852612,3.0,3767.2,3767.1,0.644]
[1717449853104,3.0,3767.3,3767.1,0.644]
[1717449853311,3.0,3767.3,3767.2,0.644]
[1717449854076,1.58307229,3767.6,3767.2,2.9334]
[1717449854397,2.65406,3767.9,3767.2,2.9334]
[1717449854398,0.57384079,3767.8,3767.5,0.644]
[1717449854644,2.65406,3767.9,3767.8,0.644]
[1717449854954,3.22784729,3767.9,3767.8,0.644]
[1717449855321,2.65406,3767.9,3767.8,0.644]
[1717449856437,5.65406,3767.9,3767.8,0.644]
[1717449857026,2.65406,3767.9,3767.8,0.644]
[1717449858221,5.65406,3767.9,3767.8,0.644]
[1717449858511,2.65429,3767.5,3766.8,2.2894]
[1717449858763,2.65429,3767.5,3767.4,0.644]
[1717449862182,3.0,3767.9,3767.4,0.644]
[1717449862462,7.32,3768.2,3767.8,0.644]
[1717449862617,2.65373,3768.3,3768.1,0.644]
[1717449864332,3.0,3768.2,3768.1,0.644]
[1717449864537,3.02992091,3768.2,3768.1,0.644]
[1717449887937,2.65387,3768.1,3767.7,2.2894]
[1717449888106,2.65387,3768.1,3768.0,0.644]
[1717449894722,2.6827655,3768.1,3768.0,0.644]
[1717449895743,0.0288955,3768.1,3768.0,0.644]
[1717449895946,0.0288955,3768.1,3767.5,1.38348864]
[1717449896148,2.65385,3768.1,3768.0,0.644]
[1717449896348,3.22752917,3768.1,3768.0,0.644]
[1717449896914,2.65385,3768.1,3768.0,0.644]
[1717449898653,2.65378,3768.2,3768.0,0.644]
[1717449898841,0.72394586,3768.1,3767.6,0.55654189]
[1717449899153,2.6541,3767.8,3767.6,0.55654189]
[1717449899319,2.6541,3767.8,3767.7,0.644]
[1717449899518,1.5855591,3768.0,3767.3,1.94019113]
[1717449899719,2.65435,3767.4,3767.2,0.55654189]
[1717449900033,2.65435,3767.4,3767.3,0.644]
[1717449900225,3.22816412,3767.4,3767.3,0.644]
[1717449900453,2.65435,3767.4,3766.9,1.94019113]
[1717449900637,4.2399091,3767.4,3767.3,0.644]
[1717449900952,2.65459,3767.1,3766.8,0.55654189]
[1717449901112,2.65459,3767.1,3767.0,0.644]
[1717449901516,4.81370782,3767.1,3766.5,0.55654189]
[1717449901828,2.65471,3766.9,3766.5,0.92265133]
[1717449902041,2.65471,3766.9,3766.8,0.644]
[1717449902580,4.23970409,3767.3,3766.8,0.644]
[1717449902752,3.0,3767.2,3766.7,2.2894]
[1717449902919,3.0,3767.2,3767.1,0.644]
[1717449906543,2.4775,3766.6,3766.4,0.55654189]
[1717449906866,2.4775,3766.6,3766.3,2.21587786]
[1717449906867,2.65519,3766.2,3765.7,0.55654189]
[1717449907067,2.65519,3766.2,3766.1,0.644]
[1717449908113,2.65519,3766.2,3765.1,1.3842361]
[1717449908114,3.0,3766.2,3765.3,0.55654189]
[1717449908414,2.4775,3766.6,3766.1,0.644]
[1717449908415,7.32,3766.5,3766.1,0.644]
[1717449908620,2.65551,3765.8,3765.0,0.55654189]
[1717449908912,2.65551,3765.8,3765.7,0.644]
[1717449909581,2.68379059,3765.8,3765.7,0.644]
[1717449913624,2.68379059,3765.8,3764.8,0.1254788]
[1717449913625,5.16129059,3765.8,3764.8,0.1254788]
[1717449913844,2.65611,3764.9,3764.8,0.1254788]
[1717449914129,2.68376899,3764.9,3764.8,0.7694788]
[1717449915811,2.68376899,3764.9,3764.8,0.1254788]
[1717449916017,2.68376899,3764.9,3764.8,0.7694788]
[1717449916824,2.68376899,3764.9,3764.8,0.1254788]
[1717449917028,2.68376899,3764.9,3764.8,0.7694788]
[1717449917263,0.02765899,3764.9,3764.8,2.09074457]
[1717449917483,0.02765899,3764.9,3764.8,2.29981903]
[1717449917698,2.65585,3765.3,3764.8,4.58921903]
[1717449917845,2.65585,3765.3,3765.2,0.644]
[1717449919673,3.0,3765.7,3765.2,0.644]
[1717449919881,3.0,3765.7,3765.5,0.644]
[1717449920080,2.65561,3765.6,3764.8,3.94521903]
[1717449920286,2.65561,3765.6,3765.5,0.644]
[1717449920654,5.65561,3765.6,3765.5,0.644]
[1717449921382,5.65561,3765.6,3764.9,2.26081767]
[1717449921591,5.65561,3765.6,3765.5,0.644]
[1717449923084,2.65561,3765.6,3765.5,0.644]
[1717449924791,2.68325631,3765.6,3765.5,0.644]
[1717449925170,2.68325631,3765.6,3764.8,0.1254788]
[1717449925171,2.65611,3764.9,3764.8,0.1254788]
[1717449925376,2.65230132,3764.9,3764.8,0.1254788]
[1717449925678,5.67981766,3764.9,3764.8,0.1254788]
[1717449927468,8.15731766,3764.9,3764.8,0.1254788]
[1717449929287,8.97304943,3764.9,3764.8,0.1254788]
[1717449929988,22.9265352,3764.9,3764.8,0.1254788]
[1717449930183,23.50080811,3764.9,3764.8,0.1254788]
[1717449930410,24.25080811,3764.9,3764.8,0.1254788]
[1717449933326,25.25080811,3764.9,3764.8,0.1254788]
[1717449944408,23.70080811,3764.9,3764.8,0.1254788]
[1717449945714,23.7009195,3764.9,3764.8,0.1254788]
[1717449946046,16.3809195,3764.9,3764.8,0.1254788]
[1717449946210,16.93092647,3764.9,3764.8,0.1254788]
[1717449946620,16.93092671,3764.9,3764.8,0.1254788]
[1717449956033,16.3565352,3764.9,3764.8,0.1254788]
[1717449956283,16.3565352,3764.9,3763.3,0.02]
[1717449956284,14.35892433,3764.9,3763.3,0.02]
[1717449956496,7.97151,3763.4,3763.3,0.02]
[1717449956684,12.29277577,3763.4,3763.3,0.02]
[1717449956992,13.44288135,3763.4,3763.3,0.02]
[1717449957133,14.19288135,3763.4,3763.3,0.02]
[1717449957455,16.34416949,3763.4,3763.3,0.02]
[1717449958685,16.98816949,3763.4,3763.3,0.02]
[1717449958864,16.34416949,3763.4,3763.3,0.02]
[1717449959504,17.34416949,3763.4,3763.3,0.02]
[1717449960209,17.34438415,3763.4,3763.3,0.02]
[1717449960413,14.68721415,3763.4,3763.3,0.02]
[1717449961213,10.48004415,3763.4,3763.3,0.02]
[1717449961412,8.32875601,3763.4,3763.3,0.02]
[1717449961614,4.00749024,3763.4,3763.3,0.02]
[1717449961770,3.25749024,3763.4,3763.3,2.3094]
[1717449962967,4.84060836,3763.4,3763.3,2.3094]
[1717449963367,3.25749024,3763.4,3763.3,2.3094]
[1717449963603,3.25749024,3763.4,3763.3,2.55042956]
[1717449963843,2.68286513,3763.4,3763.3,2.55042956]
[1717449964187,5.68286513,3763.4,3763.3,2.55042956]
[1717449965384,0.02569513,3763.4,3763.3,2.55042956]
[1717449965779,2.65687,3763.9,3763.3,2.55042956]
[1717449965980,0.55,3763.8,3763.4,0.41983252]
[1717449966200,2.65697,3763.7,3763.4,0.41983252]
[1717449967130,3.0,3763.6,3763.4,0.41983252]
[1717449967425,3.0,3763.6,3763.5,1.547]
[1717449968690,3.0,3764.0,3763.5,1.547]
[1717449968941,3.0,3764.0,3763.6,0.45172621]
[1717449969479,0.02544266,3763.9,3763.6,0.45172621]
[1717449969989,2.65688,3763.8,3763.6,0.45172621]
[1717449970201,3.0,3763.7,3763.6,0.45172621]
[1717449970512,3.02540549,3763.7,3763.6,0.45172621]
[1717449973019,0.02540549,3763.7,3763.6,0.45172621]
[1717449973324,3.02540549,3763.7,3763.6,0.45172621]
[1717449974535,0.02540549,3763.7,3763.6,0.45172621]
[1717449974821,3.0,3763.7,3763.6,0.45172621]
[1717449975037,0.02540549,3763.7,3763.6,0.45172621]
[1717449975538,3.0,3763.8,3763.6,0.45172621]
[1717449975840,3.0,3763.8,3763.7,0.19987262]
[1717449976058,3.0,3764.2,3763.8,2.2894]
[1717449980190,7.32,3764.4,3763.9,1.547]
[1717449981452,7.32,3764.4,3764.0,2.2894]
[1717449981590,7.32,3764.4,3764.3,1.547]
[1717449982036,10.32,3764.4,3764.3,1.547]
[1717449982541,10.32,3764.4,3764.3,3.8364]
[1717449983998,3.0,3764.4,3764.3,3.8364]
[1717449984205,3.0,3764.6,3764.3,3.8364]
[1717449984499,0.55,3764.5,3763.9,1.547]
[1717449984664,0.02570811,3764.5,3763.9,1.547]
[1717449985191,2.65632,3764.6,3763.9,1.547]
[1717449985343,0.55,3764.5,3764.0,0.40362726]
[1717449985548,3.57570506,3764.5,3764.0,0.40362726]
[1717449987449,3.02570506,3764.5,3764.0,0.40362726]
[1717449987782,3.02570506,3764.5,3764.1,2.2894]
[1717449988368,3.02570506,3764.5,3764.3,1.547]
[1717449988548,3.02570506,3764.5,3764.4,0.38364]
[1717449988790,0.02570506,3764.5,3764.4,0.38364]
[1717449989263,3.0,3764.9,3764.4,0.38364]
[1717449989769,0.0257915,3764.8,3764.4,0.38364]
[1717449990465,0.0257915,3764.8,3764.7,1.547]
[1717449990686,0.0257915,3764.8,3764.7,1.969004]
[1717449990887,2.6561,3765.0,3764.7,1.969004]
[1717449991499,0.02581007,3764.9,3764.7,1.969004]
[1717449991710,7.32,3765.5,3765.2,2.65584]
[1717449991850,7.32,3765.5,3765.4,1.547]
[1717449993799,6.76630066,3765.5,3765.4,1.547]
[1717449995656,9.76630066,3766.2,3765.4,1.547]
[1717449995866,9.76630066,3766.2,3765.8,1.547]
[1717449996058,9.76630066,3766.2,3765.9,0.1547]
[1717449996273,3.0,3766.2,3766.0,2.2894]
[1717449996505,3.0,3766.7,3766.0,2.2894]
[1717449996652,0.55,3766.6,3766.3,1.547]
[1717449996853,0.55,3766.7,3766.3,1.547]
[1717449997217,2.65522,3766.2,3765.0,3.8364]
[1717449997517,0.55,3766.1,3765.0,3.8364]
[1717449997654,0.55,3766.1,3765.0,2.2894]
[1717449997851,0.55,3766.1,3765.1,1.547]
[1717449998266,3.55,3766.1,3765.1,1.547]
[1717449998457,3.55,3766.1,3765.2,0.38364]
[1717449998955,2.65536,3766.0,3765.2,0.38364]
[1717449999151,3.0,3765.9,3765.2,0.38364]
[1717449999906,3.0,3765.9,3764.8,0.4258404]
[1717449999907,4.34876577,3765.8,3764.8,0.4258404]
[1717450000110,3.0,3765.7,3764.8,1.547]
[1717450000259,0.55,3765.6,3764.8,1.547]
[1717450001073,2.6559,3765.3,3764.8,1.547]
[1717450001403,3.0,3765.7,3764.5,2.2894]
[1717450001404,5.65557,3765.7,3765.2,1.547]
[1717450002474,5.65557,3765.7,3765.2,3.8364]
[1717450003103,2.65557,3765.7,3765.2,3.8364]
[1717450003992,2.65057,3765.7,3765.2,3.8364]
[1717450004204,2.65057,3765.7,3765.3,0.38364]
[1717450004905,5.65531,3766.1,3765.3,0.38364]
[1717450005699,3.0,3766.1,3765.3,0.38364]
[1717450006092,2.65561,3765.7,3765.3,0.38364]
[1717450006421,2.65561,3765.7,3765.2,1.547]
[1717450009374,2.65561,3765.7,3765.3,2.2894]
[1717450009691,5.65533,3766.1,3765.6,1.547]
[1717450009879,5.65533,3766.1,3765.7,0.1547]
[1717450014383,0.55,3766.0,3764.9,0.1547]
[1717450014625,2.65569,3765.5,3764.9,0.1547]
[1717450014800,2.65569,3765.5,3765.1,1.547]
[1717450020912,4.24090249,3765.9,3765.2,2.2894]
[1717450021253,3.0,3765.8,3765.2,2.2894]
[1717450021551,3.0,3765.8,3765.3,0.38364]
[1717450025354,3.0,3765.8,3765.5,1.547]
[1717450027174,2.65546,3765.9,3765.5,1.547]
[1717450034343,2.65546,3765.9,3765.6,0.92289514]
[1717450035480,4.58557213,3766.2,3765.6,0.92289514]
[1717450035783,4.58557213,3766.2,3765.8,1.547]
[1717450035983,2.65528,3766.1,3765.8,1.547]
[1717450036280,3.0,3766.0,3765.9,0.9228427]
[1717450039154,3.0,3766.0,3765.8,0.9228427]
[1717450039354,3.0,3766.0,3765.9,0.9228427]
[1717450040060,3.0,3766.0,3765.9,1.5658427]
[1717450041093,3.0,3766.0,3765.9,1.56587496]
[1717450042858,3.0,3766.0,3765.9,0.643]
[1717450045177,2.6554,3765.9,3765.7,1.38431244]
[1717450045393,2.6554,3765.9,3765.8,1.56588695]
[1717450046160,2.6554,3765.9,3765.8,2.95019939]
[1717450046396,2.6554,3765.9,3765.8,1.56588695]
[1717450046596,2.6554,3765.9,3765.8,2.95019939]
[1717450046800,2.6554,3765.9,3765.8,1.56588695]
[1717450047304,2.6554,3765.9,3765.8,2.95019939]
[1717450047594,2.6554,3765.9,3765.8,1.56588695]
[1717450048718,2.6554,3765.9,3765.8,2.95023417]
[1717450048873,2.6554,3765.9,3765.8,1.56588695]
[1717450049080,2.6554,3765.9,3765.8,2.95023417]
[1717450049386,2.6554,3765.9,3765.8,1.56588695]
[1717450049591,2.6554,3765.9,3765.8,2.95023417]
[1717450049771,2.6554,3765.9,3765.8,1.56588695]
[1717450050098,2.6554,3765.9,3765.8,2.95023417]
[1717450050264,2.6554,3765.9,3765.8,1.56588695]
[1717450050465,2.6554,3765.9,3765.8,2.30723417]
[1717450050698,2.6554,3765.9,3765.8,1.56588695]
[1717450050865,2.6554,3765.9,3765.8,2.95023417]
[1717450051065,2.6554,3765.9,3765.8,1.56588695]
[1717450051298,2.6554,3765.9,3765.8,2.95023417]
[1717450051501,2.6554,3765.9,3765.8,1.56588695]
[1717450051865,2.6554,3765.9,3765.8,2.95023417]
[1717450052588,2.6554,3765.9,3765.8,0.643]
[1717450052800,2.6554,3765.9,3765.8,2.95014668]
[1717450053280,2.6554,3765.9,3765.8,1.56585867]
[1717450053478,2.6554,3765.9,3765.8,2.95014668]
[1717450055629,2.6554,3765.9,3765.8,1.56585867]
[1717450055918,2.6554,3765.9,3765.8,2.95014668]
[1717450062348,2.6554,3765.9,3765.8,3.50668857]
[1717450062933,2.6554,3765.9,3765.8,2.95014668]
[1717450063240,2.6554,3765.9,3765.8,3.50668857]
[1717450068212,2.6554,3765.9,3765.8,2.95014668]
[1717450070945,2.6554,3765.9,3765.8,2.30714668]
[1717450071147,2.6554,3765.9,3765.8,2.95014668]
[1717450072656,2.6554,3765.9,3765.8,3.7823753]
[1717450073944,2.6554,3765.9,3765.8,2.95014668]
[1717450074463,2.6554,3765.9,3765.8,3.7823753]
[1717450074641,2.6554,3765.9,3765.8,3.1393753]
[1717450074852,2.6554,3765.9,3765.8,2.95014668]
[1717450075080,3.22941738,3765.9,3765.8,2.95014668]
[1717450076365,3.22941738,3765.9,3765.8,2.30714668]
[1717450076537,3.22941738,3765.9,3765.8,2.95014668]
[1717450077578,2.6554,3765.9,3765.8,2.95014668]
[1717450077884,3.22942675,3765.9,3765.8,2.95014668]
[1717450078433,2.6554,3765.9,3765.8,2.95014668]
[1717450078978,3.22942732,3765.9,3765.8,2.95014668]
[1717450079289,2.6554,3765.9,3765.8,2.95014668]
[1717450081330,2.6554,3765.9,3765.8,3.50781785]
[1717450082007,2.6554,3765.9,3765.8,2.95014668]
[1717450083023,2.6554,3765.9,3765.8,2.95032105]
[1717450083634,2.6554,3765.9,3765.8,2.95029373]
[1717450084476,2.6554,3765.9,3765.8,3.5079649]
[1717450085777,2.6554,3765.9,3765.8,2.95029373]
[1717450087922,2.6554,3765.9,3765.8,3.5079649]
[1717450091389,2.6554,3765.9,3765.8,2.95029373]
[1717450091930,2.6554,3765.9,3765.8,3.5079649]
[1717450094534,2.6554,3765.9,3765.8,2.95029373]
[1717450095535,2.6554,3765.9,3765.8,3.5079649]
[1717450097825,2.6554,3765.9,3765.8,2.95029373]
[1717450098013,2.6554,3765.9,3765.8,3.50795478]
[1717450098499,2.6554,3765.9,3765.8,2.95029373]
[1717450098932,2.6554,3765.9,3765.8,3.50795974]
[1717450101708,2.6554,3765.9,3765.8,2.95029373]
[1717450104217,2.65522,3766.2,3765.8,2.95029373]
[1717450104452,2.65522,3766.2,3766.1,0.643]
[1717450104747,6.77918552,3766.2,3766.1,2.95029373]
[1717450105107,6.22918552,3766.2,3766.1,2.95029373]
[1717450105652,5.65522,3766.2,3766.1,2.95029373]
[1717450106446,5.65522,3766.2,3766.1,3.50792356]
[1717450106652,5.65522,3766.2,3766.1,3.94193878]
[1717450106812,5.65522,3766.2,3766.1,3.50758674]
[1717450107463,5.65522,3766.2,3766.1,2.94995691]
[1717450110660,10.84126262,3766.2,3766.1,0.643]
[1717450110856,9.25668915,3766.2,3766.1,0.643]
[1717450111069,10.18235806,3766.2,3766.1,0.643]
[1717450115252,10.18240064,3766.2,3766.1,0.643]
[1717450116528,10.18240064,3766.2,3765.6,0.55762983]
[1717450116529,2.65554,3765.7,3765.6,0.55762983]
[1717450116825,2.65554,3765.7,3765.6,3.50791113]
[1717450117668,4.24043319,3766.0,3765.6,3.50791113]
[1717450117850,2.65534,3766.0,3765.9,0.643]